[Event "*** MasterClass Titled Tuesday Blitz"]
[Site "Chess.com"]
[Date "2017.07.04"]
[Round "4"]
[White "nihalsarin"]
[Black "A-Fier"]
[Result "1/2-1/2"]
[WhiteElo "2639"]
[BlackElo "2562"]
[TimeControl "180+2"]
[EndTime "13:50:39 PDT"]
[Termination "Game drawn by stalemate"]

1. d4 {[%clk 0:03:01.9]} 1... Nf6 {[%clk 0:03:00.3]} 2. Nf3 {[%clk 0:03:02.3]}
2... g6 {[%clk 0:03:01.2]} 3. c4 {[%clk 0:03:03.1]} 3... Bg7 {[%clk 0:03:02.1]}
4. Nc3 {[%clk 0:03:04.3]} 4... d5 {[%clk 0:03:02.9]} 5. cxd5 {[%clk 0:03:05.3]}
5... Nxd5 {[%clk 0:03:03.4]} 6. e4 {[%clk 0:03:06.7]} 6... Nxc3 {[%clk
0:03:04.5]} 7. bxc3 {[%clk 0:03:08.6]} 7... c5 {[%clk 0:03:06.2]} 8. Bb5+ {[%clk
0:03:09.7]} 8... Nd7 {[%clk 0:03:05.2]} 9. O-O {[%clk 0:03:10]} 9... O-O {[%clk
0:03:05.9]} 10. Re1 {[%clk 0:03:10.8]} 10... a6 {[%clk 0:03:06.7]} 11. Bf1
{[%clk 0:03:11.4]} 11... b5 {[%clk 0:03:07.6]} 12. a4 {[%clk 0:03:11.7]} 12...
b4 {[%clk 0:03:06.8]} 13. cxb4 {[%clk 0:03:12.7]} 13... cxb4 {[%clk 0:03:04.5]}
14. a5 {[%clk 0:03:14.2]} 14... Rb8 {[%clk 0:03:04.2]} 15. Bd2 {[%clk
0:03:09.6]} 15... Nf6 {[%clk 0:02:59.6]} 16. h3 {[%clk 0:03:03.4]} 16... Bb7
{[%clk 0:02:56.5]} 17. Bxb4 {[%clk 0:02:43.3]} 17... Nxe4 {[%clk 0:02:47.7]} 18.
Bd3 {[%clk 0:02:42]} 18... Nd6 {[%clk 0:02:48.3]} 19. Qe2 {[%clk 0:02:39.4]}
19... Bxf3 {[%clk 0:02:48.7]} 20. Qxf3 {[%clk 0:02:39.7]} 20... Rxb4 {[%clk
0:02:49.4]} 21. Bxa6 {[%clk 0:02:36.4]} 21... Bxd4 {[%clk 0:02:49.9]} 22. Ra2
{[%clk 0:02:36.8]} 22... Qa8 {[%clk 0:02:44.3]} 23. Qe2 {[%clk 0:02:35.4]} 23...
Rfb8 {[%clk 0:02:43.6]} 24. Rd2 {[%clk 0:02:28.2]} 24... Rb2 {[%clk 0:02:43.1]}
25. Red1 {[%clk 0:02:26.8]} 25... Rxd2 {[%clk 0:02:40.3]} 26. Rxd2 {[%clk
0:02:25.2]} 26... Qa7 {[%clk 0:02:38.3]} 27. Ra2 {[%clk 0:02:22.1]} 27... e5
{[%clk 0:02:29.6]} 28. Bd3 {[%clk 0:02:20.1]} 28... Nb7 {[%clk 0:02:25.6]} 29.
a6 {[%clk 0:02:20]} 29... Nc5 {[%clk 0:02:26.7]} 30. Bc4 {[%clk 0:02:21.5]}
30... e4 {[%clk 0:02:23.8]} 31. g3 {[%clk 0:02:18.4]} 31... Re8 {[%clk
0:02:21.4]} 32. Qd2 {[%clk 0:02:14.2]} 32... Ne6 {[%clk 0:02:03.4]} 33. Kg2
{[%clk 0:02:13.5]} 33... e3 {[%clk 0:02:04.1]} 34. fxe3 {[%clk 0:02:14.4]} 34...
Bxe3 {[%clk 0:02:05.1]} 35. Qd5 {[%clk 0:02:14.4]} 35... Qa8 {[%clk 0:01:59.7]}
36. Qxa8 {[%clk 0:02:07.7]} 36... Rxa8 {[%clk 0:01:59.5]} 37. Re2 {[%clk
0:02:01.4]} 37... Ba7 {[%clk 0:01:56]} 38. Bxe6 {[%clk 0:01:55.8]} 38... fxe6
{[%clk 0:01:57.9]} 39. Rxe6 {[%clk 0:01:57.5]} 39... Rf8 {[%clk 0:01:57.9]} 40.
h4 {[%clk 0:01:55.2]} 40... Rf7 {[%clk 0:01:58.5]} 41. Kh3 {[%clk 0:01:53.9]}
41... Kg7 {[%clk 0:01:59.4]} 42. h5 {[%clk 0:01:50.6]} 42... Bd4 {[%clk
0:01:50.5]} 43. hxg6 {[%clk 0:01:45.4]} 43... hxg6 {[%clk 0:01:52.4]} 44. Rd6
{[%clk 0:01:45.4]} 44... Bf2 {[%clk 0:01:49.6]} 45. Kg2 {[%clk 0:01:44.5]} 45...
Kh6 {[%clk 0:01:50]} 46. Rd3 {[%clk 0:01:36.8]} 46... Ba7 {[%clk 0:01:47.4]} 47.
Rd6 {[%clk 0:01:36.3]} 47... Rf2+ {[%clk 0:01:46]} 48. Kh3 {[%clk 0:01:36.4]}
48... Ra2 {[%clk 0:01:47.9]} 49. Kg4 {[%clk 0:01:34.8]} 49... Ra4+ {[%clk
0:01:48.2]} 50. Kh3 {[%clk 0:01:31.7]} 50... Ra3 {[%clk 0:01:47.7]} 51. Kg2
{[%clk 0:01:32.5]} 51... Bb8 {[%clk 0:01:47.8]} 52. Rd8 {[%clk 0:01:24.5]} 52...
Bxg3 {[%clk 0:01:46.9]} 53. a7 {[%clk 0:01:23]} 53... Rxa7 {[%clk 0:01:41.4]}
54. Kxg3 {[%clk 0:01:23.4]} 54... Ra3+ {[%clk 0:01:43.3]} 55. Kg2 {[%clk
0:01:23.9]} 55... Kh5 {[%clk 0:01:43.4]} 56. Rd4 {[%clk 0:01:24.6]} 56... g5
{[%clk 0:01:44.2]} 57. Rb4 {[%clk 0:01:25.5]} 57... g4 {[%clk 0:01:44.7]} 58.
Rb8 {[%clk 0:01:25.3]} 58... Ra5 {[%clk 0:01:44.4]} 59. Rh8+ {[%clk 0:01:25.7]}
59... Kg5 {[%clk 0:01:44]} 60. Rg8+ {[%clk 0:01:26.8]} 60... Kf4 {[%clk
0:01:45.3]} 61. Rf8+ {[%clk 0:01:27.9]} 61... Rf5 {[%clk 0:01:46.6]} 62. Rxf5+
{[%clk 0:01:28.8]} 62... Kxf5 {[%clk 0:01:48.5]} 63. Kg3 {[%clk 0:01:30.4]}
63... Kg5 {[%clk 0:01:49.3]} 64. Kg2 {[%clk 0:01:31.8]} 64... Kh4 {[%clk
0:01:51.2]} 65. Kh2 {[%clk 0:01:32.2]} 65... g3+ {[%clk 0:01:53.1]} 66. Kg2
{[%clk 0:01:33.4]} 66... Kg4 {[%clk 0:01:55]} 67. Kg1 {[%clk 0:01:34.7]} 67...
Kf4 {[%clk 0:01:56.9]} 68. Kg2 {[%clk 0:01:34.6]} 68... Kg4 {[%clk 0:01:58.8]}
69. Kg1 {[%clk 0:01:35.6]} 69... Kf3 {[%clk 0:02:00.7]} 70. Kh1 {[%clk
0:01:36.4]} 70... g2+ {[%clk 0:02:02.6]} 71. Kg1 {[%clk 0:01:37.4]} 71... Kg3
{[%clk 0:02:04]} 1/2-1/2

[Event "*** MasterClass Titled Tuesday Blitz"]
[Site "Chess.com"]
[Date "2017.07.04"]
[Round "4"]
[White "hypert"]
[Black "petrpalachev"]
[Result "1-0"]
[WhiteElo "2360"]
[BlackElo "2501"]
[TimeControl "180+2"]
[EndTime "13:50:42 PDT"]
[Termination "hypert won by resignation"]

1. e4 {[%clk 0:03:01.9]} 1... e6 {[%clk 0:02:57.5]} 2. d4 {[%clk 0:03:02.2]}
2... d5 {[%clk 0:02:57.8]} 3. Nc3 {[%clk 0:03:03.7]} 3... Nf6 {[%clk 0:02:57.8]}
4. e5 {[%clk 0:03:04.4]} 4... Nfd7 {[%clk 0:02:58]} 5. f4 {[%clk 0:03:05.4]}
5... c5 {[%clk 0:02:59.2]} 6. Nf3 {[%clk 0:03:07]} 6... Nc6 {[%clk 0:02:59.7]}
7. Be3 {[%clk 0:03:08.5]} 7... a6 {[%clk 0:02:59.2]} 8. Be2 {[%clk 0:03:06.9]}
8... b5 {[%clk 0:02:57.8]} 9. O-O {[%clk 0:03:06.1]} 9... Bb7 {[%clk 0:02:54.3]}
10. Qe1 {[%clk 0:03:05.8]} 10... cxd4 {[%clk 0:02:54.1]} 11. Nxd4 {[%clk
0:03:06.1]} 11... Bc5 {[%clk 0:02:55.1]} 12. Qf2 {[%clk 0:03:03.2]} 12... Bxd4
{[%clk 0:02:52.9]} 13. Bxd4 {[%clk 0:03:03.7]} 13... Nxd4 {[%clk 0:02:54.8]} 14.
Qxd4 {[%clk 0:03:04]} 14... Qb6 {[%clk 0:02:55.8]} 15. Rad1 {[%clk 0:03:00.3]}
15... b4 {[%clk 0:02:54.6]} 16. Na4 {[%clk 0:02:51.5]} 16... Qxd4+ {[%clk
0:02:54.4]} 17. Rxd4 {[%clk 0:02:53.4]} 17... a5 {[%clk 0:02:54.7]} 18. Bb5
{[%clk 0:02:52.2]} 18... Ba6 {[%clk 0:02:52.1]} 19. Bxa6 {[%clk 0:02:51.9]}
19... Rxa6 {[%clk 0:02:51.2]} 20. Rf3 {[%clk 0:02:42.7]} 20... Ke7 {[%clk
0:02:50.2]} 21. Rg3 {[%clk 0:02:42.7]} 21... g6 {[%clk 0:02:36.6]} 22. c3 {[%clk
0:02:39.1]} 22... Rb8 {[%clk 0:02:26.9]} 23. b3 {[%clk 0:02:19.3]} 23... Rc6
{[%clk 0:02:23.6]} 24. h4 {[%clk 0:02:15.6]} 24... Nb6 {[%clk 0:02:03.2]} 25.
Nxb6 {[%clk 0:02:04.9]} 25... Rbxb6 {[%clk 0:02:05.1]} 26. cxb4 {[%clk
0:02:01.5]} 26... axb4 {[%clk 0:02:04.8]} 27. Rgd3 {[%clk 0:01:56.7]} 27... Rc1+
{[%clk 0:01:57.9]} 28. Rd1 {[%clk 0:01:56.2]} 28... Rbc6 {[%clk 0:01:57.1]} 29.
Rxc1 {[%clk 0:01:48.2]} 29... Rxc1+ {[%clk 0:01:59]} 30. Kh2 {[%clk 0:01:46]}
30... Rc2 {[%clk 0:02:00.9]} 31. Rxb4 {[%clk 0:01:45.4]} 31... Rxa2 {[%clk
0:02:01.7]} 32. Rb7+ {[%clk 0:01:46.3]} 32... Kf8 {[%clk 0:02:02]} 33. Kg3
{[%clk 0:01:41.6]} 33... h5 {[%clk 0:01:56.7]} 34. Kf3 {[%clk 0:01:42.1]} 34...
Rc2 {[%clk 0:01:55.9]} 35. b4 {[%clk 0:01:31.1]} 35... Rc3+ {[%clk 0:01:52.2]}
36. Ke2 {[%clk 0:01:29.3]} 36... Rg3 {[%clk 0:01:45.4]} 37. Kf2 {[%clk
0:01:29.3]} 37... Rb3 {[%clk 0:01:44.4]} 38. b5 {[%clk 0:01:30.1]} 38... Rb2+
{[%clk 0:01:34.5]} 39. Kf3 {[%clk 0:01:26]} 39... Rb3+ {[%clk 0:01:28.8]} 40.
Ke2 {[%clk 0:01:26.3]} 40... Rb4 {[%clk 0:01:27.7]} 41. g3 {[%clk 0:01:20.3]}
41... Rb3 {[%clk 0:01:27.6]} 42. Kf2 {[%clk 0:01:18]} 42... Ke8 {[%clk
0:01:27.2]} 43. b6 {[%clk 0:01:17.9]} 43... d4 {[%clk 0:01:23.2]} 44. Ke2 {[%clk
0:00:56]} 44... Rxg3 {[%clk 0:01:20.6]} 45. Rc7 {[%clk 0:00:48.6]} 1-0

[Event "*** MasterClass Titled Tuesday Blitz"]
[Site "Chess.com"]
[Date "2017.07.04"]
[Round "4"]
[White "jk13"]
[Black "ChessQueen"]
[Result "0-1"]
[WhiteElo "2391"]
[BlackElo "2525"]
[TimeControl "180+2"]
[EndTime "13:50:44 PDT"]
[Termination "ChessQueen won by resignation"]

1. e4 {[%clk 0:03:01.9]} 1... c5 {[%clk 0:03:00.1]} 2. c3 {[%clk 0:03:00.2]}
2... Nf6 {[%clk 0:02:56.6]} 3. e5 {[%clk 0:03:01.3]} 3... Nd5 {[%clk 0:02:57.5]}
4. Bc4 {[%clk 0:03:03]} 4... e6 {[%clk 0:02:53.4]} 5. Nf3 {[%clk 0:03:03.5]}
5... d6 {[%clk 0:02:53.7]} 6. d4 {[%clk 0:03:01.1]} 6... cxd4 {[%clk 0:02:50.9]}
7. cxd4 {[%clk 0:03:00.6]} 7... dxe5 {[%clk 0:02:50.7]} 8. dxe5 {[%clk
0:03:01.1]} 8... Bb4+ {[%clk 0:02:50]} 9. Nbd2 {[%clk 0:02:59.3]} 9... O-O
{[%clk 0:02:45.8]} 10. O-O {[%clk 0:03:00.1]} 10... Nb6 {[%clk 0:02:43.7]} 11.
Bb3 {[%clk 0:02:58.9]} 11... Bd7 {[%clk 0:02:40.6]} 12. Qe2 {[%clk 0:02:42]}
12... Bc6 {[%clk 0:02:31.8]} 13. Ne4 {[%clk 0:02:36]} 13... N8d7 {[%clk
0:02:12]} 14. Bg5 {[%clk 0:02:13.2]} 14... Be7 {[%clk 0:02:12]} 15. Bf4 {[%clk
0:01:23]} 15... Bxe4 {[%clk 0:02:06]} 16. Qxe4 {[%clk 0:01:23.1]} 16... Nc5
{[%clk 0:02:07.3]} 17. Qe3 {[%clk 0:01:23.7]} 17... Nxb3 {[%clk 0:02:01.9]} 18.
Qxb3 {[%clk 0:01:25.6]} 18... Qd5 {[%clk 0:02:01.4]} 19. Qxd5 {[%clk 0:01:16.2]}
19... Nxd5 {[%clk 0:02:02.4]} 20. Bg5 {[%clk 0:01:17.9]} 20... Bc5 {[%clk
0:01:59.9]} 21. Rac1 {[%clk 0:01:15.4]} 21... Rfc8 {[%clk 0:01:58.5]} 22. a3
{[%clk 0:00:56.5]} 22... a5 {[%clk 0:01:56.5]} 23. Rc2 {[%clk 0:00:52.8]} 23...
Rc6 {[%clk 0:01:56.4]} 24. Rfc1 {[%clk 0:00:51.1]} 24... Rac8 {[%clk 0:01:57.2]}
25. Kf1 {[%clk 0:00:50.6]} 25... h6 {[%clk 0:01:54.3]} 26. Bd2 {[%clk
0:00:51.3]} 26... a4 {[%clk 0:01:39.3]} 27. Rc4 {[%clk 0:00:46.4]} 27... Nb6
{[%clk 0:01:37.3]} 28. R4c2 {[%clk 0:00:44.9]} 28... Kh7 {[%clk 0:01:28.7]} 29.
Ba5 {[%clk 0:00:37.8]} 29... Nd5 {[%clk 0:01:23.8]} 30. Rc4 {[%clk 0:00:38.6]}
30... Ba7 {[%clk 0:00:59]} 31. Rxc6 {[%clk 0:00:35.6]} 31... Rxc6 {[%clk
0:01:00.6]} 32. Rxc6 {[%clk 0:00:35.5]} 32... bxc6 {[%clk 0:01:02.2]} 33. g3
{[%clk 0:00:31.7]} 33... Kg6 {[%clk 0:01:03.3]} 34. Ke2 {[%clk 0:00:31.9]} 34...
Kf5 {[%clk 0:01:04.6]} 35. h4 {[%clk 0:00:21.9]} 35... Ke4 {[%clk 0:01:03.4]}
36. Bd2 {[%clk 0:00:19.3]} 36... Bd4 {[%clk 0:00:59.8]} 37. Nxd4 {[%clk
0:00:14]} 37... Kxd4 {[%clk 0:01:01]} 38. f4 {[%clk 0:00:14.5]} 38... Kc4 {[%clk
0:00:58.4]} 39. Bc1 {[%clk 0:00:13]} 39... h5 {[%clk 0:00:55.9]} 40. Kd2 {[%clk
0:00:13.7]} 40... Ne7 {[%clk 0:00:54.2]} 41. Ke3 {[%clk 0:00:12]} 41... Nf5+
{[%clk 0:00:54.8]} 42. Kf3 {[%clk 0:00:13.5]} 42... Kd3 {[%clk 0:00:55.5]} 43.
g4 {[%clk 0:00:13.7]} 43... hxg4+ {[%clk 0:00:54.1]} 44. Kxg4 {[%clk 0:00:15.6]}
44... Kc2 {[%clk 0:00:55.4]} 0-1

[Event "*** MasterClass Titled Tuesday Blitz"]
[Site "Chess.com"]
[Date "2017.07.04"]
[Round "4"]
[White "Divertissement"]
[Black "gmcorrales"]
[Result "1-0"]
[WhiteElo "2425"]
[BlackElo "2599"]
[TimeControl "180+2"]
[EndTime "13:50:54 PDT"]
[Termination "Divertissement won by checkmate"]

1. d4 {[%clk 0:03:01.9]} 1... Nf6 {[%clk 0:02:56.2]} 2. Nf3 {[%clk 0:02:58.5]}
2... g6 {[%clk 0:02:54.3]} 3. Bg5 {[%clk 0:02:58.6]} 3... Bg7 {[%clk 0:02:53.8]}
4. Nbd2 {[%clk 0:02:59.3]} 4... d5 {[%clk 0:02:54.9]} 5. e3 {[%clk 0:02:59.6]}
5... O-O {[%clk 0:02:55.3]} 6. Be2 {[%clk 0:03:00.1]} 6... Nbd7 {[%clk
0:02:56.4]} 7. O-O {[%clk 0:03:00]} 7... c6 {[%clk 0:02:57.9]} 8. c4 {[%clk
0:02:59.9]} 8... Re8 {[%clk 0:02:58]} 9. cxd5 {[%clk 0:02:59.1]} 9... Nxd5
{[%clk 0:02:57.8]} 10. Rc1 {[%clk 0:02:55.1]} 10... h6 {[%clk 0:02:57.5]} 11.
Bh4 {[%clk 0:02:55.6]} 11... N5b6 {[%clk 0:02:41.9]} 12. Nb3 {[%clk 0:02:46.9]}
12... a5 {[%clk 0:02:39.3]} 13. Nc5 {[%clk 0:02:46.9]} 13... Nxc5 {[%clk
0:02:39]} 14. Rxc5 {[%clk 0:02:48.5]} 14... Be6 {[%clk 0:02:35.9]} 15. a3 {[%clk
0:02:46.4]} 15... a4 {[%clk 0:02:34.8]} 16. Qd2 {[%clk 0:02:41.3]} 16... Bd5
{[%clk 0:02:28.6]} 17. Rfc1 {[%clk 0:02:39]} 17... Qd7 {[%clk 0:02:27.9]} 18.
Qb4 {[%clk 0:02:28.9]} 18... Nc8 {[%clk 0:02:26.6]} 19. Ne5 {[%clk 0:02:23.7]}
19... Bxe5 {[%clk 0:02:09.2]} 20. dxe5 {[%clk 0:02:24]} 20... Qf5 {[%clk
0:02:06.7]} 21. Qxb7 {[%clk 0:01:25.1]} 21... Ra7 {[%clk 0:02:05.9]} 22. Qb4
{[%clk 0:01:24.9]} 22... Qxe5 {[%clk 0:02:07]} 23. Bg3 {[%clk 0:01:22.6]} 23...
Qe6 {[%clk 0:02:07.6]} 24. Bg4 {[%clk 0:01:17]} 24... f5 {[%clk 0:02:04.4]} 25.
Bd1 {[%clk 0:01:17.9]} 25... Nd6 {[%clk 0:02:01.7]} 26. Bxa4 {[%clk 0:01:02.2]}
26... Rb7 {[%clk 0:02:02.6]} 27. Qe1 {[%clk 0:00:55.3]} 27... Ne4 {[%clk
0:02:02.3]} 28. R5c2 {[%clk 0:00:45.9]} 28... Rb6 {[%clk 0:01:57.9]} 29. f3
{[%clk 0:00:35.4]} 29... Nxg3 {[%clk 0:01:56.4]} 30. hxg3 {[%clk 0:00:37]} 30...
Ra8 {[%clk 0:01:57.2]} 31. b3 {[%clk 0:00:30.1]} 31... Raa6 {[%clk 0:01:54.5]}
32. Qd2 {[%clk 0:00:18.7]} 32... Bxb3 {[%clk 0:01:47.2]} 33. Bxb3 {[%clk
0:00:18.4]} 33... Rxb3 {[%clk 0:01:49.1]} 34. Rc3 {[%clk 0:00:19.2]} 34... Raxa3
{[%clk 0:01:48]} 35. Qd8+ {[%clk 0:00:19.6]} 35... Kg7 {[%clk 0:01:48.5]} 36.
Rxc6 {[%clk 0:00:20.6]} 36... Qxe3+ {[%clk 0:01:46.2]} 37. Kh2 {[%clk
0:00:21.9]} 37... f4 {[%clk 0:01:07.7]} 38. Rc8 {[%clk 0:00:17.6]} 38... fxg3+
{[%clk 0:01:08.4]} 39. Kh1 {[%clk 0:00:17.4]} 39... Kf6 {[%clk 0:00:59.3]} 40.
Qf8+ {[%clk 0:00:16.5]} 40... Kg5 {[%clk 0:00:59]} 41. R8c5+ {[%clk 0:00:16.6]}
41... e5 {[%clk 0:00:59.3]} 42. Qe7+ {[%clk 0:00:16.9]} 42... Kf5 {[%clk
0:00:51.2]} 43. Qd7+ {[%clk 0:00:18.1]} 43... Kg5 {[%clk 0:00:52.4]} 44. Qg4+
{[%clk 0:00:19]} 44... Kf6 {[%clk 0:00:53.6]} 45. Rc6+ {[%clk 0:00:20.4]} 45...
Ke7 {[%clk 0:00:50.6]} 46. Qe6+ {[%clk 0:00:20.4]} 46... Kd8 {[%clk 0:00:51.3]}
47. Rc8# {[%clk 0:00:20.9]} 1-0

[Event "*** MasterClass Titled Tuesday Blitz"]
[Site "Chess.com"]
[Date "2017.07.04"]
[Round "4"]
[White "SuperCheese"]
[Black "ulises2013"]
[Result "1/2-1/2"]
[WhiteElo "2413"]
[BlackElo "2302"]
[TimeControl "180+2"]
[EndTime "13:50:57 PDT"]
[Termination "Game drawn by repetition"]

1. d4 {[%clk 0:03:01.9]} 1... g6 {[%clk 0:02:43.3]} 2. e4 {[%clk 0:03:01.1]}
2... Bg7 {[%clk 0:02:43.6]} 3. Nc3 {[%clk 0:03:02.1]} 3... c5 {[%clk 0:02:44.5]}
4. d5 {[%clk 0:03:02.3]} 4... d6 {[%clk 0:02:31.1]} 5. Bb5+ {[%clk 0:02:59.6]}
5... Bd7 {[%clk 0:02:29.8]} 6. a4 {[%clk 0:02:59.1]} 6... a6 {[%clk 0:02:26.1]}
7. Bd3 {[%clk 0:02:55.5]} 7... e5 {[%clk 0:02:25.7]} 8. Nge2 {[%clk 0:02:42.9]}
8... Ne7 {[%clk 0:02:25.5]} 9. O-O {[%clk 0:02:41.8]} 9... O-O {[%clk
0:02:25.6]} 10. Ng3 {[%clk 0:02:40.4]} 10... f5 {[%clk 0:02:24]} 11. exf5 {[%clk
0:02:31.7]} 11... Nxf5 {[%clk 0:02:19.5]} 12. Nxf5 {[%clk 0:02:30.4]} 12... Bxf5
{[%clk 0:02:21.4]} 13. f3 {[%clk 0:02:30.3]} 13... Nd7 {[%clk 0:02:16]} 14. Qe2
{[%clk 0:02:16.9]} 14... Nf6 {[%clk 0:02:09]} 15. Bc4 {[%clk 0:02:10.8]} 15...
Kh8 {[%clk 0:01:48.7]} 16. a5 {[%clk 0:02:09.2]} 16... Re8 {[%clk 0:01:44.6]}
17. g4 {[%clk 0:02:06.9]} 17... Bd7 {[%clk 0:01:43.7]} 18. Ne4 {[%clk
0:02:04.3]} 18... Nxe4 {[%clk 0:01:43.1]} 19. Qxe4 {[%clk 0:02:01.4]} 19... Rf8
{[%clk 0:01:42.1]} 20. Kg2 {[%clk 0:01:56.6]} 20... Qh4 {[%clk 0:01:39.7]} 21.
Be3 {[%clk 0:01:40.6]} 21... Bh6 {[%clk 0:01:36.9]} 22. Bf2 {[%clk 0:01:41.6]}
22... Qe7 {[%clk 0:01:32.5]} 23. Bg3 {[%clk 0:01:41.6]} 23... Bf4 {[%clk
0:01:31]} 24. Ra3 {[%clk 0:01:40]} 24... Rae8 {[%clk 0:01:21.4]} 25. Re1 {[%clk
0:01:38.6]} 25... Qg7 {[%clk 0:01:11.5]} 26. Rb3 {[%clk 0:01:37.1]} 26... Bc8
{[%clk 0:01:11.9]} 27. Rb6 {[%clk 0:01:37]} 27... Qc7 {[%clk 0:01:03.6]} 28.
Bxf4 {[%clk 0:01:36.3]} 28... Rxf4 {[%clk 0:01:00.1]} 29. Qxf4 {[%clk
0:01:36.9]} 29... exf4 {[%clk 0:01:00.2]} 30. Rxe8+ {[%clk 0:01:38.1]} 30... Kg7
{[%clk 0:01:00.2]} 31. Re4 {[%clk 0:01:38.9]} 31... g5 {[%clk 0:00:56]} 32. h4
{[%clk 0:01:37.7]} 32... h6 {[%clk 0:00:56.3]} 33. h5 {[%clk 0:01:38.3]} 33...
Kf7 {[%clk 0:00:53.2]} 34. b3 {[%clk 0:01:38.7]} 34... Bd7 {[%clk 0:00:52.6]}
35. Kf2 {[%clk 0:01:24.5]} 35... Bc8 {[%clk 0:00:52.7]} 36. c3 {[%clk
0:01:19.8]} 36... Bd7 {[%clk 0:00:43.4]} 37. Ke2 {[%clk 0:01:20.7]} 37... Bc8
{[%clk 0:00:43.9]} 38. Kd3 {[%clk 0:01:21.5]} 38... Bd7 {[%clk 0:00:42.9]} 39.
Re6 {[%clk 0:01:20.5]} 39... Bxe6 {[%clk 0:00:34.7]} 40. dxe6+ {[%clk
0:01:22.4]} 40... Kf6 {[%clk 0:00:35.5]} 41. Bd5 {[%clk 0:01:23.3]} 41... c4+
{[%clk 0:00:36.1]} 42. bxc4 {[%clk 0:01:23.6]} 42... Qc5 {[%clk 0:00:35.4]} 43.
Rxb7 {[%clk 0:01:24.9]} 43... Qe3+ {[%clk 0:00:35.1]} 44. Kc2 {[%clk 0:01:25.9]}
44... Qe2+ {[%clk 0:00:35.2]} 45. Kb3 {[%clk 0:01:22.8]} 45... Qd1+ {[%clk
0:00:35.1]} 46. Kb2 {[%clk 0:01:15.6]} 46... Qd2+ {[%clk 0:00:34.9]} 47. Kb3
{[%clk 0:01:16.8]} 47... Qd1+ {[%clk 0:00:34.8]} 48. Kb2 {[%clk 0:01:06.3]}
48... Qd2+ {[%clk 0:00:34.4]} 49. Kb3 {[%clk 0:01:07]} 49... Qd1+ {[%clk
0:00:32.8]} 1/2-1/2

[Event "*** MasterClass Titled Tuesday Blitz"]
[Site "Chess.com"]
[Date "2017.07.04"]
[Round "4"]
[White "Adham_Fawzy"]
[Black "Rodalquilar"]
[Result "1-0"]
[WhiteElo "2413"]
[BlackElo "2529"]
[TimeControl "180+2"]
[EndTime "13:51:14 PDT"]
[Termination "Adham_Fawzy won by checkmate"]

1. e4 {[%clk 0:03:00]} 1... e5 {[%clk 0:03:00.6]} 2. Nf3 {[%clk 0:03:00.6]} 2...
Nc6 {[%clk 0:03:01.8]} 3. Bb5 {[%clk 0:03:01.8]} 3... a6 {[%clk 0:03:02.6]} 4.
Bxc6 {[%clk 0:03:02.2]} 4... dxc6 {[%clk 0:03:04.5]} 5. O-O {[%clk 0:03:03.1]}
5... Bg4 {[%clk 0:03:04.4]} 6. h3 {[%clk 0:03:02.3]} 6... h5 {[%clk 0:03:05.3]}
7. d3 {[%clk 0:03:03.3]} 7... Qf6 {[%clk 0:03:00.4]} 8. Be3 {[%clk 0:03:04.2]}
8... Bxf3 {[%clk 0:03:01]} 9. Qxf3 {[%clk 0:03:04.3]} 9... Qxf3 {[%clk
0:03:01.9]} 10. gxf3 {[%clk 0:03:06.2]} 10... Bd6 {[%clk 0:02:54.5]} 11. Nd2
{[%clk 0:03:06.5]} 11... Ne7 {[%clk 0:02:55.6]} 12. Rfb1 {[%clk 0:03:05.7]}
12... f5 {[%clk 0:02:55.9]} 13. Nc4 {[%clk 0:03:05]} 13... f4 {[%clk 0:02:53.6]}
14. Bd2 {[%clk 0:03:03]} 14... g5 {[%clk 0:02:54.8]} 15. Kf1 {[%clk 0:03:03.5]}
15... g4 {[%clk 0:02:36.9]} 16. Ke2 {[%clk 0:03:01.2]} 16... gxf3+ {[%clk
0:02:27.3]} 17. Kxf3 {[%clk 0:03:01.4]} 17... b5 {[%clk 0:02:23.1]} 18. Nxd6+
{[%clk 0:02:47.6]} 18... cxd6 {[%clk 0:02:25]} 19. Rg1 {[%clk 0:02:48.9]} 19...
Kf7 {[%clk 0:02:23.5]} 20. Rg5 {[%clk 0:02:46.9]} 20... Rag8 {[%clk 0:02:24.1]}
21. Rag1 {[%clk 0:02:44.5]} 21... Rxg5 {[%clk 0:02:24.2]} 22. Rxg5 {[%clk
0:02:44.8]} 22... Kf6 {[%clk 0:02:25.6]} 23. Rg1 {[%clk 0:02:40.6]} 23... Ng6
{[%clk 0:02:21.3]} 24. Ke2 {[%clk 0:02:41.2]} 24... Nf8 {[%clk 0:01:42.1]} 25.
f3 {[%clk 0:01:33]} 25... Ne6 {[%clk 0:01:33.2]} 26. c3 {[%clk 0:01:33.3]} 26...
Ng5 {[%clk 0:01:07.6]} 27. Be1 {[%clk 0:01:27.9]} 27... h4 {[%clk 0:00:25.3]}
28. Rg4 {[%clk 0:01:27.2]} 28... Nxh3 {[%clk 0:00:20.5]} 29. Bxh4+ {[%clk
0:01:27.1]} 29... Ke6 {[%clk 0:00:08.7]} 30. Kf1 {[%clk 0:01:27.5]} 30... Ng5
{[%clk 0:00:05.4]} 31. Bxg5 {[%clk 0:01:26.4]} 31... Rh1+ {[%clk 0:00:07.1]} 32.
Rg1 {[%clk 0:01:25.8]} 32... Rh2 {[%clk 0:00:08.5]} 33. Rg2 {[%clk 0:01:23.1]}
33... Rh1+ {[%clk 0:00:09.9]} 34. Kf2 {[%clk 0:01:22.9]} 34... Rb1 {[%clk
0:00:09.8]} 35. b3 {[%clk 0:01:16.4]} 35... Ra1 {[%clk 0:00:07.4]} 36. a4 {[%clk
0:00:51.7]} 36... Rb1 {[%clk 0:00:07.8]} 37. axb5 {[%clk 0:00:50.7]} 37... axb5
{[%clk 0:00:07.8]} 38. b4 {[%clk 0:00:51.3]} 38... Rc1 {[%clk 0:00:09.2]} 39.
Bh4 {[%clk 0:00:49.2]} 39... Rxc3 {[%clk 0:00:10]} 40. Rg6+ {[%clk 0:00:49.4]}
40... Kd7 {[%clk 0:00:10.1]} 41. Rg7+ {[%clk 0:00:50.1]} 41... Ke6 {[%clk
0:00:11.1]} 42. Re7# {[%clk 0:00:49.7]} 1-0